fUSD/lending_fUSD_20260109
["ID","MTS","AMOUNT","RATE_DAILY","PERIOD"]
[401141506,1767970243026,-379374.2865,0.000179,2]
[401141507,1767970243036,-4184.0,0.000179,2]
[401141508,1767970243045,-171.0,0.00017936,2]
[401141509,1767970243054,-171.0,0.00017958,2]
[401141510,1767970243063,-500.0,0.00017973,2]
[401141511,1767970243073,-500.0,0.00017973,2]
[401141512,1767970243082,-279.31517583,0.00017973,2]
[401141513,1767970243091,-500.0,0.00017973,2]
[401141514,1767970243100,-500.0,0.00017973,2]
[401141515,1767970243109,-500.0,0.00017973,2]
[401141516,1767970243119,-500.0,0.00017973,2]
[401141517,1767970243128,-500.0,0.00017973,2]
[401141518,1767970243137,-500.0,0.00017973,2]
[401141519,1767970243147,-500.0,0.00017973,2]
[401141520,1767970243156,-500.0,0.00017973,2]
[401141521,1767970243167,-500.0,0.00017973,2]
[401141522,1767970243176,-500.0,0.00017973,2]
[401141523,1767970243185,-500.0,0.00017973,2]
[401141524,1767970243197,-500.0,0.00017973,2]
[401141525,1767970243206,-500.0,0.00017973,2]
[401141526,1767970243215,-609.94892981,0.00017973,2]
[401141527,1767970243224,-515.27642925,0.00017973,2]
[401141528,1767970243233,-500.0,0.00017973,2]
[401141529,1767970243242,-195.06667749,0.00017973,2]
[401141530,1767970243251,-500.0,0.00017973,2]
[401141531,1767970243261,-286.84842062,0.00017973,2]
[401141532,1767970243270,-500.0,0.00017973,2]
[401141533,1767970243279,-500.0,0.00017973,2]
[401141534,1767970243288,-500.0,0.00017973,2]
[401141535,1767970243298,-168.53464326,0.00017973,2]
[401141536,1767970243306,-500.0,0.00017973,2]
[401141537,1767970243316,-500.0,0.00017973,2]
[401141538,1767970243325,-500.0,0.00017973,2]
[401141539,1767970243334,-500.0,0.00017973,2]
[401141540,1767970243345,-500.0,0.00017973,2]
[401141541,1767970243354,-500.0,0.00017973,2]
[401141542,1767970243363,-500.0,0.00017973,2]
[401141543,1767970243371,-500.0,0.00017973,2]
[401141544,1767970243381,-150.0,0.00017973,2]
[401141545,1767970243390,-500.0,0.00017973,2]
[401141546,1767970243399,-500.0,0.00017973,2]
[401141547,1767970243408,-578.02071049,0.00017973,2]
[401141548,1767970243418,-429.09119552,0.00017973,2]
[401141549,1767970243427,-500.0,0.00017973,2]
[401141550,1767970243437,-501.05787152,0.00017973,2]
[401141552,1767970243447,-500.0,0.00017973,2]
[401141554,1767970243457,-500.0,0.00017973,2]
[401141556,1767970243467,-500.0,0.00017973,2]
[401141558,1767970243477,-500.0,0.00017973,2]
[401141560,1767970243487,-500.0,0.00017973,2]
[401141563,1767970243497,-500.0,0.00017973,2]
[401141564,1767970243506,-546.15438132,0.00017973,2]
[401141567,1767970243515,-500.0,0.00017973,2]
[401141569,1767970243525,-500.0,0.00017973,2]
[401141571,1767970243534,-500.0,0.00017973,2]
[401141572,1767970243543,-500.0,0.00017973,2]
[401141574,1767970243552,-208.06887662,0.00017973,2]
[401141576,1767970243562,-500.0,0.00017973,2]
[401141579,1767970243571,-500.0,0.00017973,2]
[401141581,1767970243581,-165.3256661,0.00017973,2]
[401141583,1767970243594,-500.0,0.00017973,2]
[401141585,1767970243603,-500.0,0.00017973,2]
[401141586,1767970243612,-500.0,0.00017973,2]
[401141588,1767970243622,-500.0,0.00017973,2]
[401141590,1767970243631,-398.03125352,0.00017973,2]
[401141592,1767970243640,-554.86072459,0.00017973,2]
[401141594,1767970243649,-182.86859792,0.00017973,2]
[401141596,1767970243658,-150.0,0.00017973,2]
[401141598,1767970243667,-150.0,0.00017973,2]
[401141600,1767970243677,-500.0,0.00017982,2]
[401141602,1767970243687,-516.29838033,0.0001799,2]
[401141604,1767970243698,-516.29838033,0.0001799,2]
[401141606,1767970243707,-300.0,0.00017997,2]
[401141608,1767970243716,-666.0,0.00017997,2]
[401141610,1767970243725,-300.0,0.00017997,2]
[401141612,1767970243734,-191990.5422843,0.00017998,2]
[401141614,1767970243744,-45042.681074,0.00017998,2]
[401141616,1767970243753,-21302.1461598,0.00017998,2]
[401141618,1767970243762,-1135.27137756,0.00017998,3]
[401141620,1767970243771,-3909.0473468,0.00017998,2]
[401141622,1767970243781,-48784.0902824,0.00017998,2]
[401141624,1767970243790,-11541.22312161,0.00017999,2]
[401141626,1767970243799,-300.0,0.00017999,2]
[401141628,1767970243808,-300.0,0.00017999,2]
[401141630,1767970243818,-666.0,0.00017999,2]
[401141632,1767970243828,-300.0,0.00017999,2]
[401141634,1767970243837,-300.0,0.00017999,2]
[401141636,1767970243847,-666.0,0.00017999,2]
[401141638,1767970243857,-300.0,0.00017999,2]
[401141640,1767970243866,-666.0,0.00017999,2]
[401141641,1767970243875,-300.0,0.00017999,2]
[401141642,1767970243884,-666.0,0.00017999,2]
[401141643,1767970243893,-150.0,0.00017999,2]
[401141644,1767970243903,-300.0,0.00017999,2]
[401141645,1767970243912,-1408853.94353002,0.00018,2]
[401141647,1767970243958,-1917.51421362,0.00018,2]
[401141654,1767970244016,-451.91,0.00018,2]
[401141686,1767970245811,-192.78862053,0.00013902,2]
[401141687,1767970245820,-127.49137947,0.00016488,2]
[401141688,1767970245832,-275.26,0.00016488,2]
[401141689,1767970245844,-312.802,0.00016488,2]
[401141690,1767970245908,-105.83162053,0.00016488,2]
[401141691,1767970245917,-2018.86,0.00017178,2]
[401141692,1767970245927,-2513.67917264,0.000179,2]
[401141693,1767970245936,-357053.62920685,0.00018,2]
[401141696,1767970246327,-1970.1896449,0.00016488,2]
[401141697,1767970246348,-488.9603551,0.00016488,2]
[401141698,1767970246357,-1142.92612457,0.00018,2]
[401141699,1767970246526,-791635.68907924,0.00018,2]
[401141706,1767970636238,702.0,0.000202,30]
[401141709,1767971355134,-188.96599264,0.00013606,2]
[401141710,1767971355155,-721.22194849,0.00013618,2]
[401141718,1767971432252,-233.24505151,0.00013618,2]
[401141720,1767971432262,-877.60146849,0.00013646,2]
[401141729,1767971438128,-322.39853151,0.00013646,2]
[401141730,1767971438138,-209.40762448,0.00013647,2]
[401141731,1767971438227,-380.02168969,0.00013647,2]
[401141732,1767971438245,-727.24547939,0.00013647,2]
[401141733,1767971438258,-1894.6295807,0.00013647,2]
[401141799,1767971440144,-435.70380142,0.00013647,2]
[401141800,1767971440236,-273.24326264,0.00013647,2]
[401141801,1767971440337,-4123.56856168,0.00013647,2]
[401141802,1767971440347,-272.0,0.00013747,2]
[401141803,1767971440356,-99.43143832,0.00013748,2]
[401141804,1767971440426,-1096.01856168,0.00013748,2]
[401141805,1767971440435,-500.0,0.00013795,2]
[401141806,1767971440444,-7573.78143832,0.00013795,2]
[401141807,1767971440873,-1038.2180179,0.00013795,2]
[401141808,1767971440909,-991388.00054378,0.00013795,2]
[401141809,1767971440919,-4741.11321132,0.00013806,2]
[401141810,1767971440928,-1453.95,0.00013865,2]
[401141811,1767971440938,-500.0,0.00013894,2]
[401141812,1767971440947,-192.23943256,0.00013894,2]
[401141813,1767971440956,-500.0,0.00013894,2]
[401141814,1767971440967,-500.0,0.00013894,2]
[401141815,1767971440979,-500.0,0.00013894,2]
[401141816,1767971440988,-500.0,0.00013894,2]
[401141817,1767971440997,-500.0,0.00013894,2]
[401141818,1767971441006,-500.0,0.00013894,2]
[401141819,1767971441015,-500.0,0.00013894,2]
[401141820,1767971441025,-500.0,0.00013894,2]
[401141821,1767971441035,-318.31899855,0.00013894,2]
[401141822,1767971441048,-500.0,0.00013894,2]
[401141823,1767971441057,-500.0,0.00013894,2]
[401141824,1767971441066,-500.0,0.00013894,2]
[401141825,1767971441075,-500.0,0.00013894,2]
[401141826,1767971441084,-500.0,0.00013894,2]
[401141827,1767971441093,-500.0,0.00013894,2]
[401141828,1767971441102,-500.0,0.00013894,2]
[401141829,1767971441111,-500.0,0.00013894,2]
[401141830,1767971441120,-500.0,0.00013894,2]
[401141831,1767971441130,-500.0,0.00013894,2]
[401141832,1767971441140,-200.0,0.00013894,2]
[401141833,1767971441149,-210.22004647,0.00013895,2]
[401141834,1767971441158,-500.0,0.00013895,2]
[401141835,1767971441168,-499.04549515,0.00013895,2]
[401141836,1767971441177,-500.0,0.00013895,2]
[401141837,1767971441188,-500.0,0.00013895,2]
[401141838,1767971441198,-1000.0,0.00013896,2]
[401141839,1767971441207,-158.85557551,0.00013906,2]
[401141840,1767971441217,-999.0,0.00014106,3]
[401141841,1767971441226,-166.67,0.00014142,2]
[401141842,1767971441237,-1852.42,0.00014148,2]
[401141843,1767971441249,-4741.11321128,0.00014261,2]
[401141844,1767971441258,-158.85557547,0.00014572,2]
[401141845,1767971441268,-217.14,0.00014607,2]
[401141846,1767971441278,-4741.11321128,0.00014716,2]
[401141847,1767971441287,-500.0,0.00014763,2]
[401141848,1767971441296,-500.0,0.00014763,2]
[401141849,1767971441306,-1062.94288157,0.0001495,2]
[401141850,1767971441315,-250.0,0.00014967,2]
[401141851,1767971441324,-2500.0,0.00014967,2]
[401141852,1767971441334,-600.0,0.00014967,2]
[401141853,1767971441342,-600.0,0.00014967,2]
[401141854,1767971441351,-600.0,0.00014967,2]
[401141855,1767971441361,-600.0,0.00014967,2]
[401141856,1767971441370,-600.0,0.00014967,2]
[401141857,1767971441379,-195.0,0.0001498,2]
[401141858,1767971441388,-1680.0,0.00015011,2]
[401141859,1767971441397,-4741.11321128,0.00015171,2]
[401141860,1767971441407,-158.85557547,0.00015237,2]
[401141861,1767971441416,-166.67,0.00015309,2]
[401141862,1767971441427,-151.0,0.00015415,2]
[401141863,1767971441436,-151.0,0.00015415,2]
[401141864,1767971441448,-151.0,0.00015415,2]
[401141865,1767971441457,-151.75,0.00015426,2]
[401141866,1767971441467,-218.5301037,0.00015456,2]
[401141867,1767971441477,-4741.11321128,0.00015626,2]
[401141868,1767971441486,-318.9635124,0.000159,2]
[401141869,1767971441495,-318.9635124,0.000159,2]
[401141870,1767971441504,-318.9635124,0.000159,2]
[401141871,1767971441513,-318.9635124,0.000159,2]
[401141872,1767971441523,-318.9635124,0.000159,2]
[401141873,1767971441532,-318.9635124,0.000159,2]
[401141874,1767971441541,-158.85557547,0.00015903,2]
[401141875,1767971441550,-257.63,0.00015981,2]
[401141876,1767971441560,-59944.6750929,0.00016045,2]
[401141877,1767971441569,-4741.11321128,0.0001608,2]
[401141878,1767971441579,-152.0,0.00016144,3]
[401141879,1767971441588,-152.0,0.00016318,4]
[401141880,1767971441598,-217.14,0.00016433,2]
[401141881,1767971441607,-500.0,0.00016438,2]
[401141882,1767971441616,-500.0,0.00016438,2]
[401141883,1767971441626,-500.0,0.00016438,2]
[401141884,1767971441636,-500.0,0.00016438,2]
[401141885,1767971441645,-500.0,0.00016438,2]
[401141886,1767971441654,-500.0,0.00016438,2]
[401141887,1767971441663,-500.0,0.00016438,2]
[401141888,1767971441673,-500.0,0.00016438,2]
[401141889,1767971441683,-500.0,0.00016438,2]
[401141890,1767971441692,-500.0,0.00016438,2]
[401141891,1767971441702,-500.0,0.00016438,2]
[401141892,1767971441711,-500.0,0.00016438,2]
[401141893,1767971441721,-500.0,0.00016438,2]
[401141894,1767971441731,-500.0,0.00016438,2]
[401141895,1767971441741,-500.0,0.00016438,2]
[401141896,1767971441750,-500.0,0.00016438,2]
[401141897,1767971441760,-500.0,0.00016438,2]
[401141898,1767971441770,-500.0,0.00016438,2]
[401141899,1767971441779,-500.0,0.00016438,2]
[401141900,1767971441789,-500.0,0.00016438,2]
[401141901,1767971441798,-500.0,0.00016438,2]
[401141902,1767971441808,-500.0,0.00016438,2]
[401141903,1767971441817,-500.0,0.00016438,2]
[401141904,1767971441826,-500.0,0.00016438,2]
[401141905,1767971441836,-500.0,0.00016438,2]
[401141906,1767971441845,-500.0,0.00016438,2]
[401141907,1767971441854,-500.0,0.00016438,2]
[401141908,1767971441864,-500.0,0.00016438,2]
[401141909,1767971441873,-500.0,0.00016438,2]
[401141910,1767971441882,-500.0,0.00016438,2]
[401141911,1767971441891,-500.0,0.00016438,2]
[401141912,1767971441901,-500.0,0.00016438,2]
[401141913,1767971441910,-500.0,0.00016438,2]
[401141914,1767971441920,-500.0,0.00016438,2]
[401141915,1767971441929,-500.0,0.00016438,2]
[401141916,1767971441939,-500.0,0.00016438,2]
[401141917,1767971441948,-500.0,0.00016438,2]
[401141918,1767971441958,-500.0,0.00016438,2]
[401141919,1767971441968,-500.0,0.00016438,2]
[401141920,1767971441978,-500.0,0.00016438,2]
[401141921,1767971441987,-500.0,0.00016438,2]
[401141922,1767971441996,-500.0,0.00016438,2]
[401141923,1767971442006,-500.0,0.00016438,2]
[401141924,1767971442015,-500.0,0.00016438,2]
[401141925,1767971442024,-500.0,0.00016438,2]
[401141926,1767971442034,-500.0,0.00016438,2]
[401141927,1767971442043,-500.0,0.00016438,2]
[401141928,1767971442053,-500.0,0.00016438,2]
[401141929,1767971442062,-500.0,0.00016438,2]
[401141930,1767971442073,-500.0,0.00016438,2]
[401141931,1767971442083,-500.0,0.00016438,2]
[401141932,1767971442092,-500.0,0.00016438,2]
[401141933,1767971442101,-500.0,0.00016438,2]
[401141934,1767971442110,-500.0,0.00016438,2]
[401141935,1767971442119,-501.90601809,0.00016438,2]
[401141936,1767971442128,-500.0,0.00016438,2]
[401141937,1767971442138,-500.0,0.00016438,2]
[401141938,1767971442148,-500.0,0.00016438,2]
[401141939,1767971442157,-500.0,0.00016438,2]
[401141940,1767971442167,-500.0,0.00016438,2]
[401141941,1767971442176,-500.0,0.00016438,2]
[401141942,1767971442186,-500.0,0.00016438,2]
[401141943,1767971442198,-500.0,0.00016438,2]
[401141944,1767971442208,-500.0,0.00016438,2]
[401141945,1767971442219,-500.0,0.00016438,2]
[401141946,1767971442228,-500.0,0.00016438,2]
[401141947,1767971442241,-500.0,0.00016438,2]
[401141948,1767971442250,-500.0,0.00016438,2]
[401141949,1767971442260,-500.0,0.00016438,2]
[401141950,1767971442270,-500.19060181,0.00016438,2]
[401141951,1767971442280,-500.0,0.00016438,2]
[401141952,1767971442289,-500.0,0.00016438,2]
[401141953,1767971442299,-500.0,0.00016438,2]
[401141954,1767971442308,-164.95,0.0001644,2]
[401141955,1767971442317,-164.95,0.0001644,2]
[401141956,1767971442326,-2459.15,0.00016452,2]
[401141957,1767971442336,-4819.0,0.00016452,2]
[401141958,1767971442345,-566.0,0.00016452,2]
[401141959,1767971442355,-166.67,0.00016476,2]
[401141960,1767971442364,-150.0,0.00016488,2]
[401141961,1767971442374,-150.0,0.00016488,2]
[401141962,1767971442384,-200.0,0.00016488,2]
[401141963,1767971442394,-200.0,0.00016488,2]
[401141964,1767971442404,-250.0,0.00016488,2]
[401141965,1767971442415,-171.0,0.00016488,2]
[401141966,1767971442425,-194.254,0.00016488,2]
[401141967,1767971442435,-226.508,0.00016488,2]
[401141968,1767971442444,-211.999,0.00016488,2]
[401141969,1767971442453,-157.382,0.00016488,2]
[401141970,1767971442464,-250.0,0.00016488,2]
[401141971,1767971442474,-243.342,0.00016488,2]
[401141972,1767971442484,-190.931,0.00016488,2]
[401141973,1767971442494,-163.819,0.00016488,2]
[401141974,1767971442505,-211.969,0.00016488,2]
[401141975,1767971442514,-250.0,0.00016488,2]
[401141976,1767971442523,-229.605,0.00016488,2]
[401141977,1767971442533,-169.0,0.00016488,2]
[401141978,1767971442542,-614.0,0.00016488,2]
[401141979,1767971442552,-3468.0,0.00016488,2]
[401141980,1767971442562,-1330.0,0.00016488,2]
[401141981,1767971442571,-1405.0,0.00016488,2]
[401141982,1767971442580,-1266.0,0.00016488,2]
[401141983,1767971442589,-916.599,0.00016488,2]
[401141984,1767971442598,-1202.14,0.00016488,2]
[401141985,1767971442609,-152.0,0.00016491,5]
[401141986,1767971442619,-2351.0,0.00016512,2]
[401141987,1767971442629,-4741.11321128,0.00016535,2]
[401141988,1767971442639,-158.85557547,0.00016569,2]
[401141989,1767971442650,-152.0,0.00016665,6]
[401141990,1767971442660,-164.6,0.00016722,2]
[401141991,1767971442670,-164.6,0.00016838,2]
[401141992,1767971442680,-152.0,0.00016839,7]
[401141993,1767971442690,-888.46,0.000169,2]
[401141994,1767971442701,-164.6,0.00016954,2]
[401141995,1767971442713,-300.94862606,0.00016983,2]
[401141996,1767971442723,-516.29838033,0.0001699,2]
[401141997,1767971442734,-4741.11321128,0.0001699,2]
[401141998,1767971442744,-700.71,0.00017,2]
[401141999,1767971442755,-700.71,0.00017,2]
[401142000,1767971442765,-700.71,0.00017,2]
[401142001,1767971442776,-700.71,0.00017,2]
[401142002,1767971442787,-1000.0,0.00017,2]
[401142003,1767971442798,-250.0,0.00017,2]
[401142004,1767971442808,-701.19,0.00017,2]
[401142005,1767971442819,-152.0,0.00017013,8]
[401142006,1767971442830,-150.0,0.00017022,2]
[401142007,1767971442840,-482.82,0.00017041,2]
[401142008,1767971442850,-661.58,0.00017041,2]
[401142009,1767971442861,-482.82,0.00017041,2]
[401142010,1767971442870,-482.82,0.00017041,2]
[401142011,1767971442881,-482.82,0.00017041,2]
[401142012,1767971442890,-482.82,0.00017041,2]
[401142013,1767971442899,-482.82,0.00017041,2]
[401142014,1767971442909,-482.82,0.00017041,2]
[401142015,1767971442919,-424.05,0.00017041,2]
[401142016,1767971442929,-164.6,0.00017071,2]
[401142017,1767971442940,-322.6107,0.00017099,2]
[401142018,1767971442950,-553.64373807,0.00017099,2]
[401142020,1767971442962,-1000.0,0.000171,2]
[401142021,1767971442972,-179.26667024,0.00017176,2]
[401142022,1767971442983,-300.0,0.00017178,2]
[401142023,1767971442993,-244.18,0.00017178,2]
[401142024,1767971443003,-150.0,0.00017178,2]
[401142025,1767971443013,-150.0,0.00017178,2]
[401142026,1767971443023,-152.0,0.00017186,9]
[401142027,1767971443034,-164.6,0.00017187,2]
[401142028,1767971443044,-159.10718443,0.00017196,2]
[401142029,1767971443054,-1000.0,0.000172,2]
[401142030,1767971443066,-1000.0,0.000172,2]
[401142031,1767971443076,-1769.23756914,0.000172,2]
[401142032,1767971443086,-158.85557547,0.00017234,2]
[401142033,1767971443096,-164.95,0.00017266,2]
[401142034,1767971443105,-164.95,0.00017266,2]
[401142035,1767971443115,-150.0,0.00017275,2]
[401142036,1767971443125,-150.0,0.00017275,2]
[401142037,1767971443135,-273.60393039,0.00017275,2]
[401142038,1767971443144,-137716.6993401,0.00017276,2]
[401142039,1767971443154,-224024.80928529,0.00017276,2]
[401142040,1767971443164,-316389.89197518,0.00017276,2]
[401142041,1767971443174,-409401.8577,0.00017276,2]
[401142042,1767971443185,-1000.0,0.000173,2]
[401142043,1767971443197,-164.6,0.00017303,2]
[401142044,1767971443212,-1769.23756912,0.0001734,2]
[401142045,1767971443222,-833.0,0.0001735,2]
[401142046,1767971443233,-833.0,0.00017358,2]
[401142047,1767971443244,-152.0,0.0001736,10]
[401142048,1767971443254,-1109.82690506,0.000174,2]
[401142049,1767971443264,-164.6,0.00017419,2]
[401142050,1767971443277,-4741.11321128,0.00017445,2]
[401142051,1767971443287,-833.0,0.00017466,2]
[401142052,1767971443298,-1769.23756912,0.0001748,2]
[401142053,1767971443309,-833.0,0.00017526,2]
[401142054,1767971443318,-152.0,0.00017534,11]
[401142055,1767971443328,-164.6,0.00017535,2]
[401142056,1767971443339,-179.26667024,0.00017538,2]
[401142057,1767971443349,-1826.0,0.000176,2]
[401142058,1767971443359,-1769.23756912,0.0001762,2]
[401142059,1767971443368,-2927.90722046,0.0001764,2]
[401142060,1767971443379,-574.12855637,0.00017647,2]
[401142061,1767971443389,-164.6,0.00017651,2]
[401142062,1767971443399,-833.0,0.00017685,2]
[401142063,1767971443409,-152.0,0.00017708,12]
[401142064,1767971443419,-346.94,0.0001771,2]
[401142065,1767971443429,-556.4,0.0001771,2]
[401142066,1767971443440,-933.42,0.00017727,2]
[401142067,1767971443450,-466.84,0.00017727,2]
[401142068,1767971443462,-955.07,0.00017727,2]
[401142069,1767971443471,-307.0,0.00017752,2]
[401142070,1767971443482,-1769.23756912,0.0001776,2]
[401142071,1767971443492,-164.6,0.00017768,2]
[401142072,1767971443502,-2000.0,0.000178,2]
[401142073,1767971443512,-1000.0,0.000178,2]
[401142074,1767971443521,-200.35779431,0.00017808,2]
[401142075,1767971443531,-2000.0,0.00017856,2]
[401142076,1767971443541,-200.0,0.00017856,2]
[401142077,1767971443551,-152.0,0.00017881,13]
[401142078,1767971443561,-164.6,0.00017884,2]
[401142079,1767971443570,-10000.0,0.000179,2]
[401142080,1767971443580,-10101.4972,0.000179,2]
[401142081,1767971443589,-7411.4566,0.000179,2]
[401142082,1767971443599,-565.17771938,0.000179,2]
[401142083,1767971443608,-158.85557547,0.000179,2]
[401142084,1767971443618,-9437.31173742,0.000179,3]
[401142085,1767971443628,-4741.11321128,0.000179,2]
[401142086,1767971443637,-2387.99521405,0.000179,2]
[401142087,1767971443647,-2387.99521401,0.000179,2]
[401142088,1767971443657,-2387.99521401,0.000179,2]
[401142089,1767971443666,-2387.99521401,0.000179,2]
[401142090,1767971443675,-2387.99521401,0.000179,2]
[401142091,1767971443685,-2387.99521401,0.000179,2]
[401142092,1767971443694,-2387.99521401,0.000179,2]
[401142093,1767971443704,-2387.99521401,0.000179,2]
[401142094,1767971443714,-2387.99521401,0.000179,2]
[401142095,1767971443724,-2387.99521401,0.000179,2]
[401142096,1767971443734,-2387.99521401,0.000179,2]
[401142097,1767971443744,-2387.99521401,0.000179,2]
[401142098,1767971443754,-2387.99521401,0.000179,2]
[401142099,1767971443764,-2387.99521401,0.000179,2]
[401142100,1767971443773,-2387.99521401,0.000179,2]
[401142101,1767971443783,-2387.99521401,0.000179,2]
[401142102,1767971443793,-2387.99521401,0.000179,2]
[401142103,1767971443803,-2387.99521401,0.000179,2]
[401142104,1767971443813,-2387.99521401,0.000179,2]
[401142105,1767971443823,-2387.99521401,0.000179,2]
[401142106,1767971443833,-4834.31017102,0.000179,2]
[401142107,1767971443842,-179.26667024,0.000179,2]
[401142108,1767971443851,-773.31348478,0.000179,2]
[401142109,1767971443861,-30000.0,0.000179,2]
[401142110,1767971443872,-2748.20085295,0.000179,2]
[401142111,1767971443883,-14573.64864428,0.000179,2]
[401142112,1767971443893,-1769.23756912,0.000179,2]
[401142113,1767971443903,-500.0,0.000179,2]
[401142115,1767971443914,-500.0,0.000179,2]
[401142116,1767971443924,-500.0,0.000179,2]
[401142117,1767971443934,-500.0,0.000179,2]
[401142119,1767971443944,-500.0,0.000179,2]
[401142122,1767971443955,-500.0,0.000179,2]
[401142125,1767971443966,-500.0,0.000179,2]
[401142128,1767971443975,-500.0,0.000179,2]
[401142131,1767971443986,-500.0,0.000179,2]
[401142134,1767971443995,-500.0,0.000179,2]
[401142136,1767971444005,-500.0,0.000179,2]
[401142138,1767971444015,-500.0,0.000179,2]
[401142140,1767971444024,-500.0,0.000179,2]
[401142142,1767971444034,-500.0,0.000179,2]
[401142144,1767971444044,-500.0,0.000179,2]
[401142146,1767971444054,-500.0,0.000179,2]
[401142148,1767971444064,-500.0,0.000179,2]
[401142149,1767971444074,-500.0,0.000179,2]
[401142150,1767971444083,-500.0,0.000179,2]
[401142151,1767971444093,-500.0,0.000179,2]
[401142152,1767971444103,-4186.0,0.000179,2]
[401142153,1767971444113,-231.0,0.00017972,2]
[401142154,1767971444123,-500.0,0.00017973,2]
[401142155,1767971444134,-500.0,0.00017973,2]
[401142156,1767971444144,-609.94892981,0.00017973,2]
[401142157,1767971444153,-286.84842062,0.00017973,2]
[401142158,1767971444164,-500.0,0.00017973,2]
[401142159,1767971444174,-500.0,0.00017973,2]
[401142160,1767971444184,-500.0,0.00017973,2]
[401142161,1767971444195,-500.0,0.00017973,2]
[401142162,1767971444206,-500.0,0.00017973,2]
[401142163,1767971444217,-500.0,0.00017973,2]
[401142164,1767971444227,-500.0,0.00017973,2]
[401142165,1767971444238,-500.0,0.00017973,2]
[401142166,1767971444248,-500.0,0.00017973,2]
[401142167,1767971444258,-500.0,0.00017973,2]
[401142168,1767971444268,-500.0,0.00017973,2]
[401142169,1767971444279,-500.0,0.00017973,2]
[401142170,1767971444289,-500.0,0.00017973,2]
[401142171,1767971444299,-500.0,0.00017973,2]
[401142172,1767971444309,-500.0,0.00017973,2]
[401142173,1767971444318,-150.0,0.00017973,2]
[401142174,1767971444328,-500.0,0.00017973,2]
[401142175,1767971444338,-500.0,0.00017973,2]
[401142176,1767971444348,-500.0,0.00017973,2]
[401142177,1767971444358,-501.05787152,0.00017973,2]
[401142178,1767971444368,-500.0,0.00017973,2]
[401142179,1767971444378,-429.09119552,0.00017973,2]
[401142180,1767971444388,-578.02071049,0.00017973,2]
[401142181,1767971444399,-279.31517583,0.00017973,2]
[401142182,1767971444408,-500.0,0.00017973,2]
[401142183,1767971444418,-500.0,0.00017973,2]
[401142184,1767971444428,-168.53464326,0.00017973,2]
[401142185,1767971444438,-500.0,0.00017973,2]
[401142186,1767971444448,-500.0,0.00017973,2]
[401142187,1767971444458,-500.0,0.00017973,2]
[401142188,1767971444470,-182.86859792,0.00017973,2]
[401142189,1767971444480,-500.0,0.00017973,2]
[401142190,1767971444490,-500.0,0.00017973,2]
[401142191,1767971444500,-500.0,0.00017973,2]
[401142192,1767971444510,-195.06667749,0.00017973,2]
[401142193,1767971444520,-500.0,0.00017973,2]
[401142194,1767971444530,-515.27642925,0.00017973,2]
[401142195,1767971444540,-500.0,0.00017973,2]
[401142196,1767971444550,-500.0,0.00017973,2]
[401142197,1767971444561,-500.0,0.00017973,2]
[401142198,1767971444571,-500.0,0.00017973,2]
[401142199,1767971444580,-500.0,0.00017973,2]